[Event "Titled Tuesday Blitz October 31 Late 2023"]
[White "Sailer, Mike"]
[Black "Yeritsyan, Hayk"]
[WhiteFideId "2012901"]
[BlackFideId "13307320"]
[WhiteElo "2068"]
[BlackElo "2440"]
[Result "0-1"]
[Round "5"]
[TimeControl "180+1"]
[Date "2023.10.31"]
[WhiteClock "0:00:06"]
[BlackClock "0:00:20"]
[Board "107"]

1. g3 {[%clk 0:03:00]}  d5 {[%clk 0:02:51]} 2. Bg2 {[%clk 0:03:00]}  c6 {[%clk 0:02:52]} 3. c4 {[%clk 0:03:00]}  Nf6 {[%clk 0:02:53]} 4. Nf3 {[%clk 0:03:00]}  Bf5 {[%clk 0:02:52]} 5. O-O {[%clk 0:03:01]}  e6 {[%clk 0:02:53]} 6. d4 {[%clk 0:02:52]}  h6 {[%clk 0:02:52]} 7. Qb3 {[%clk 0:02:49]}  Qb6 {[%clk 0:02:51]} 8. c5 {[%clk 0:02:48]}  Qxb3 {[%clk 0:02:50]} 9. axb3 {[%clk 0:02:49]}  Nbd7 {[%clk 0:02:50]} 10. Nc3 {[%clk 0:02:44]}  a6 {[%clk 0:02:49]} 11. b4 {[%clk 0:02:44]}  Rc8 {[%clk 0:02:49]} 12. Ne5 {[%clk 0:02:27]}  Nxe5 {[%clk 0:02:47]} 13. dxe5 {[%clk 0:02:28]}  Nd7 {[%clk 0:02:48]} 14. f4 {[%clk 0:02:26]}  Be7 {[%clk 0:02:43]} 15. e4 {[%clk 0:02:25]}  Bh7 {[%clk 0:02:36]} 16. exd5 {[%clk 0:02:24]}  cxd5 {[%clk 0:02:35]} 17. Ne2 {[%clk 0:02:12]}  b6 {[%clk 0:02:21]} 18. cxb6 {[%clk 0:02:03]}  Nxb6 {[%clk 0:02:19]} 19. Rxa6 {[%clk 0:01:54]}  Nd7 {[%clk 0:02:00]} 20. Rd1 {[%clk 0:01:48]}  Bxb4 {[%clk 0:01:54]} 21. Nd4 {[%clk 0:01:42]}  O-O {[%clk 0:01:41]} 22. Be3 {[%clk 0:01:41]}  Nc5 {[%clk 0:01:36]} 23. Rb6 {[%clk 0:01:17]}  Ba5 {[%clk 0:01:15]} 24. Rb5 {[%clk 0:01:13]}  Bd8 {[%clk 0:01:15]} 25. Bf1 {[%clk 0:01:01]}  Ne4 {[%clk 0:01:12]} 26. Ra1 {[%clk 0:00:53]}  Be7 {[%clk 0:01:09]} 27. Ra7 {[%clk 0:00:48]}  Bc5 {[%clk 0:01:05]} 28. Raa5 {[%clk 0:00:41]}  Bxd4 {[%clk 0:00:45]} 29. Bxd4 {[%clk 0:00:40]}  Rc1 {[%clk 0:00:34]} 30. Kg2 {[%clk 0:00:35]}  Rc2+ {[%clk 0:00:32]} 31. Kg1 {[%clk 0:00:32]}  Rc1 {[%clk 0:00:26]} 32. Kg2 {[%clk 0:00:22]}  Bf5 {[%clk 0:00:23]} 33. Bd3 {[%clk 0:00:21]}  Rd1 {[%clk 0:00:20]} 34. Bxe4 {[%clk 0:00:11]}  Bxe4+ {[%clk 0:00:19]} 35. Kh3 {[%clk 0:00:06]}  Rxd4 {[%clk 0:00:20]} 0-1


[Site "https://www.chess.com"]

[Event "Titled Tuesday Blitz October 31 Late 2023"]
[White "Elbebiber"]
[Black "Blanco Ronquillo, Humberto L."]
[BlackFideId "3504239"]
[WhiteElo "2166"]
[BlackElo "2715"]
[Result "0-1"]
[Round "5"]
[TimeControl "180+1"]
[Date "2023.10.31"]
[WhiteClock "0:01:35"]
[BlackClock "0:02:46"]
[Board "108"]

1. f4 {[%clk 0:03:00]}  Nf6 {[%clk 0:02:57]} 2. Nf3 {[%clk 0:02:59]}  g6 {[%clk 0:02:58]} 3. e3 {[%clk 0:02:56]}  Bg7 {[%clk 0:02:57]} 4. d4 {[%clk 0:02:49]}  O-O {[%clk 0:02:58]} 5. Bd3 {[%clk 0:02:47]}  c5 {[%clk 0:02:58]} 6. c3 {[%clk 0:02:45]}  d6 {[%clk 0:02:59]} 7. O-O {[%clk 0:02:41]}  Nc6 {[%clk 0:02:59]} 8. dxc5 {[%clk 0:02:22]}  dxc5 {[%clk 0:03:00]} 9. Be2 {[%clk 0:02:21]}  Qc7 {[%clk 0:02:59]} 10. Qc2 {[%clk 0:02:15]}  Bf5 {[%clk 0:02:58]} 11. Bd3 {[%clk 0:02:05]}  Bxd3 {[%clk 0:02:52]} 12. Qxd3 {[%clk 0:02:05]}  e5 {[%clk 0:02:53]} 13. Na3 {[%clk 0:01:52]}  e4 {[%clk 0:02:51]} 14. Nb5 {[%clk 0:01:35]}  Qb6 {[%clk 0:02:46]} 0-1


[Site "https://www.chess.com"]

[Event "Titled Tuesday Blitz October 31 Late 2023"]
[White "Hambleton, Aman"]
[Black "Guha, Eshan"]
[WhiteFideId "2606577"]
[BlackFideId "30958628"]
[WhiteElo "2772"]
[BlackElo "2387"]
[Result "1-0"]
[Round "5"]
[TimeControl "180+1"]
[Date "2023.10.31"]
[WhiteClock "0:00:09"]
[BlackClock "0:00:03"]
[Board "109"]

1. d4 {[%clk 0:02:52]}  Nf6 {[%clk 0:02:59]} 2. Bf4 {[%clk 0:02:49]}  d5 {[%clk 0:02:59]} 3. e3 {[%clk 0:02:49]}  e6 {[%clk 0:03:00]} 4. Nf3 {[%clk 0:02:49]}  Bd6 {[%clk 0:03:00]} 5. Nbd2 {[%clk 0:02:49]}  O-O {[%clk 0:03:00]} 6. Bd3 {[%clk 0:02:46]}  b6 {[%clk 0:03:00]} 7. Qe2 {[%clk 0:02:45]}  Bb7 {[%clk 0:02:59]} 8. Ne5 {[%clk 0:02:21]}  c5 {[%clk 0:02:51]} 9. c3 {[%clk 0:02:20]}  Nc6 {[%clk 0:02:44]} 10. Rd1 {[%clk 0:02:13]}  Ne7 {[%clk 0:02:20]} 11. O-O {[%clk 0:01:40]}  Qc7 {[%clk 0:01:33]} 12. h3 {[%clk 0:01:33]}  Ng6 {[%clk 0:01:17]} 13. Nxg6 {[%clk 0:01:25]}  hxg6 {[%clk 0:01:17]} 14. Bxd6 {[%clk 0:01:23]}  Qxd6 {[%clk 0:01:17]} 15. f4 {[%clk 0:01:23]}  Ne4 {[%clk 0:00:51]} 16. Nxe4 {[%clk 0:00:53]}  dxe4 {[%clk 0:00:52]} 17. Bb5 {[%clk 0:00:53]}  Bc6 {[%clk 0:00:45]} 18. Bxc6 {[%clk 0:00:23]}  Qxc6 {[%clk 0:00:46]} 19. Qc4 {[%clk 0:00:24]}  Rac8 {[%clk 0:00:44]} 20. d5 {[%clk 0:00:24]}  exd5 {[%clk 0:00:42]} 21. Qxd5 {[%clk 0:00:20]}  Rfe8 {[%clk 0:00:18]} 22. Qxc6 {[%clk 0:00:18]}  Rxc6 {[%clk 0:00:19]} 23. Rd7 {[%clk 0:00:18]}  a6 {[%clk 0:00:16]} 24. Rfd1 {[%clk 0:00:18]}  b5 {[%clk 0:00:08]} 25. R1d6 {[%clk 0:00:11]}  Re6 {[%clk 0:00:06]} 26. Rd8+ {[%clk 0:00:12]}  Kh7 {[%clk 0:00:06]} 27. R6d7 {[%clk 0:00:12]}  Rf6 {[%clk 0:00:06]} 28. g4 {[%clk 0:00:10]}  Rcd6 {[%clk 0:00:05]} 29. Rxd6 {[%clk 0:00:09]}  Rxd6 {[%clk 0:00:02]} 30. Rxd6 {[%clk 0:00:10]}  a5 {[%clk 0:00:02]} 31. g5 {[%clk 0:00:09]}  b4 {[%clk 0:00:03]} 1-0


[Site "https://www.chess.com"]

[Event "Titled Tuesday Blitz October 31 Late 2023"]
[White "Bazilius, Augustinas"]
[Black "Minina, Veronika"]
[WhiteFideId "12832251"]
[BlackFideId "4174780"]
[WhiteElo "2503"]
[BlackElo "2338"]
[Result "1-0"]
[Round "5"]
[TimeControl "180+1"]
[Date "2023.10.31"]
[WhiteClock "0:00:47"]
[BlackClock "0:00:01"]
[Board "112"]

1. d4 {[%clk 0:02:30]}  Nf6 {[%clk 0:02:59]} 2. c4 {[%clk 0:02:31]}  g6 {[%clk 0:03:00]} 3. Nc3 {[%clk 0:02:30]}  Bg7 {[%clk 0:03:00]} 4. e4 {[%clk 0:02:30]}  d6 {[%clk 0:03:01]} 5. h3 {[%clk 0:02:31]}  O-O {[%clk 0:03:02]} 6. Be3 {[%clk 0:02:31]}  c5 {[%clk 0:03:02]} 7. d5 {[%clk 0:02:31]}  e6 {[%clk 0:03:02]} 8. Nf3 {[%clk 0:02:31]}  exd5 {[%clk 0:03:02]} 9. exd5 {[%clk 0:02:32]}  Re8 {[%clk 0:02:38]} 10. Bd3 {[%clk 0:02:29]}  Nbd7 {[%clk 0:02:38]} 11. O-O {[%clk 0:02:28]}  Ne5 {[%clk 0:02:39]} 12. Nxe5 {[%clk 0:02:28]}  Rxe5 {[%clk 0:02:39]} 13. Bf4 {[%clk 0:02:23]}  Re8 {[%clk 0:02:38]} 14. Nb5 {[%clk 0:02:21]}  Bf8 {[%clk 0:02:34]} 15. Bg5 {[%clk 0:02:15]}  a6 {[%clk 0:02:20]} 16. Bxf6 {[%clk 0:02:15]}  Qxf6 {[%clk 0:02:18]} 17. Nc7 {[%clk 0:02:15]}  Bf5 {[%clk 0:02:15]} 18. Nxa8 {[%clk 0:02:12]}  Rxa8 {[%clk 0:02:15]} 19. Qf3 {[%clk 0:02:07]}  Bg7 {[%clk 0:02:01]} 20. Bxf5 {[%clk 0:01:53]}  gxf5 {[%clk 0:01:58]} 21. b3 {[%clk 0:01:48]}  b5 {[%clk 0:01:36]} 22. Qd3 {[%clk 0:01:30]}  b4 {[%clk 0:01:33]} 23. a3 {[%clk 0:01:19]}  a5 {[%clk 0:01:19]} 24. axb4 {[%clk 0:01:14]}  cxb4 {[%clk 0:01:20]} 25. Ra2 {[%clk 0:01:08]}  Qc3 {[%clk 0:00:30]} 26. Qxc3 {[%clk 0:01:07]}  bxc3 {[%clk 0:00:25]} 27. b4 {[%clk 0:01:07]}  a4 {[%clk 0:00:19]} 28. c5 {[%clk 0:01:05]}  dxc5 {[%clk 0:00:18]} 29. bxc5 {[%clk 0:01:06]}  Kf8 {[%clk 0:00:17]} 30. Re1 {[%clk 0:00:59]}  Bd4 {[%clk 0:00:13]} 31. c6 {[%clk 0:00:57]}  Rd8 {[%clk 0:00:11]} 32. Rxa4 {[%clk 0:00:50]}  Rxd5 {[%clk 0:00:10]} 33. c7 {[%clk 0:00:50]}  Rc5 {[%clk 0:00:01]} 34. Ra8+ {[%clk 0:00:47]} 1-0


[Site "https://www.chess.com"]

[Event "Titled Tuesday Blitz October 31 Late 2023"]
[White "Zivic, Dragan"]
[Black "Tworuszka, Michal"]
[WhiteFideId "904740"]
[BlackFideId "1117858"]
[WhiteElo "2321"]
[BlackElo "2463"]
[Result "0-1"]
[Round "5"]
[TimeControl "180+1"]
[Date "2023.10.31"]
[WhiteClock "0:02:29"]
[BlackClock "0:02:30"]
[Board "115"]

1. c4 {[%clk 0:03:00]}  c5 {[%clk 0:02:59]} 2. Nc3 {[%clk 0:03:00]}  Nf6 {[%clk 0:02:59]} 3. Nf3 {[%clk 0:03:00]}  d5 {[%clk 0:02:59]} 4. cxd5 {[%clk 0:02:58]}  Nxd5 {[%clk 0:03:00]} 5. g3 {[%clk 0:02:57]}  Nc6 {[%clk 0:02:59]} 6. Bg2 {[%clk 0:02:57]}  Nc7 {[%clk 0:02:47]} 7. O-O {[%clk 0:02:56]}  e5 {[%clk 0:02:47]} 8. e3 {[%clk 0:02:55]}  Be7 {[%clk 0:02:48]} 9. b3 {[%clk 0:02:51]}  O-O {[%clk 0:02:46]} 10. Bb2 {[%clk 0:02:51]}  Bf5 {[%clk 0:02:44]} 11. d3 {[%clk 0:02:29]}  Bxd3 {[%clk 0:02:30]} 0-1


[Site "https://www.chess.com"]

[Event "Titled Tuesday Blitz October 31 Late 2023"]
[White "Skaric, Djuro"]
[Black "Bilan, Danila"]
[WhiteFideId "934569"]
[BlackFideId "24161918"]
[WhiteElo "2313"]
[BlackElo "2460"]
[Result "0-1"]
[Round "5"]
[TimeControl "180+1"]
[Date "2023.10.31"]
[WhiteClock "0:01:11"]
[BlackClock "0:00:49"]
[Board "116"]

1. g3 {[%clk 0:03:00]}  d5 {[%clk 0:02:55]} 2. Bg2 {[%clk 0:03:01]}  Nf6 {[%clk 0:02:52]} 3. d3 {[%clk 0:03:02]}  c5 {[%clk 0:02:51]} 4. Nf3 {[%clk 0:03:02]}  Nc6 {[%clk 0:02:51]} 5. O-O {[%clk 0:03:03]}  Bg4 {[%clk 0:02:52]} 6. h3 {[%clk 0:03:02]}  Bh5 {[%clk 0:02:52]} 7. Nc3 {[%clk 0:03:01]}  e6 {[%clk 0:02:51]} 8. g4 {[%clk 0:02:57]}  Bg6 {[%clk 0:02:51]} 9. Bf4 {[%clk 0:02:57]}  Bd6 {[%clk 0:02:51]} 10. Bg5 {[%clk 0:02:51]}  h5 {[%clk 0:02:36]} 11. Bxf6 {[%clk 0:02:29]}  gxf6 {[%clk 0:02:10]} 12. e4 {[%clk 0:02:19]}  hxg4 {[%clk 0:02:07]} 13. Nd2 {[%clk 0:02:18]}  gxh3 {[%clk 0:01:58]} 14. Bf3 {[%clk 0:02:18]}  f5 {[%clk 0:01:46]} 15. Kh1 {[%clk 0:02:10]}  Qh4 {[%clk 0:01:40]} 16. Rg1 {[%clk 0:02:08]}  Nd4 {[%clk 0:01:26]} 17. exf5 {[%clk 0:01:47]}  Qxf2 {[%clk 0:01:19]} 18. Nf1 {[%clk 0:01:41]}  Nxf3 {[%clk 0:01:07]} 19. Rg4 {[%clk 0:01:28]}  Bxf5 {[%clk 0:00:59]} 20. Qe2 {[%clk 0:01:20]}  Qxe2 {[%clk 0:00:55]} 21. Nxe2 {[%clk 0:01:19]}  Bxg4 {[%clk 0:00:55]} 22. Ne3 {[%clk 0:01:17]}  f5 {[%clk 0:00:53]} 23. c4 {[%clk 0:01:12]}  d4 {[%clk 0:00:52]} 24. Nf1 {[%clk 0:01:11]}  Ne5 {[%clk 0:00:49]} 0-1


[Site "https://www.chess.com"]

[Event "Titled Tuesday Blitz October 31 Late 2023"]
[White "Shtivelband, Richard"]
[Black "Mmukka"]
[WhiteFideId "2017342"]
[WhiteElo "2311"]
[BlackElo "2455"]
[Result "0-1"]
[Round "5"]
[TimeControl "180+1"]
[Date "2023.10.31"]
[WhiteClock "0:00:01"]
[BlackClock "0:00:07"]
[Board "117"]

1. e4 {[%clk 0:03:00]}  c5 {[%clk 0:02:59]} 2. c3 {[%clk 0:02:59]}  d5 {[%clk 0:02:59]} 3. exd5 {[%clk 0:02:59]}  Qxd5 {[%clk 0:03:00]} 4. d4 {[%clk 0:02:59]}  Nf6 {[%clk 0:03:00]} 5. Nf3 {[%clk 0:02:58]}  e6 {[%clk 0:03:00]} 6. Be3 {[%clk 0:02:57]}  cxd4 {[%clk 0:03:00]} 7. cxd4 {[%clk 0:02:57]}  Nc6 {[%clk 0:03:00]} 8. Nc3 {[%clk 0:02:56]}  Qd6 {[%clk 0:03:01]} 9. g3 {[%clk 0:02:40]}  Be7 {[%clk 0:02:40]} 10. Bg2 {[%clk 0:02:39]}  O-O {[%clk 0:02:41]} 11. O-O {[%clk 0:02:39]}  Rd8 {[%clk 0:02:36]} 12. Rc1 {[%clk 0:02:30]}  Qb4 {[%clk 0:02:17]} 13. Qe2 {[%clk 0:02:21]}  a6 {[%clk 0:01:39]} 14. Rfd1 {[%clk 0:02:15]}  Bd7 {[%clk 0:01:35]} 15. d5 {[%clk 0:02:11]}  exd5 {[%clk 0:01:34]} 16. Nxd5 {[%clk 0:02:11]}  Nxd5 {[%clk 0:01:34]} 17. Rxd5 {[%clk 0:02:12]}  Be6 {[%clk 0:01:33]} 18. Rxd8+ {[%clk 0:02:06]}  Rxd8 {[%clk 0:01:34]} 19. a3 {[%clk 0:02:04]}  Qb3 {[%clk 0:01:30]} 20. Ng5 {[%clk 0:01:44]}  Nd4 {[%clk 0:00:54]} 21. Bxd4 {[%clk 0:01:42]}  Bxg5 {[%clk 0:00:53]} 22. Be3 {[%clk 0:00:42]}  Bxe3 {[%clk 0:00:52]} 23. fxe3 {[%clk 0:00:42]}  h6 {[%clk 0:00:48]} 24. Rc7 {[%clk 0:00:37]}  b5 {[%clk 0:00:39]} 25. Bf3 {[%clk 0:00:31]}  Bc4 {[%clk 0:00:27]} 26. Qf2 {[%clk 0:00:28]}  Qd3 {[%clk 0:00:24]} 27. Bh5 {[%clk 0:00:19]}  Qb1+ {[%clk 0:00:23]} 28. Kg2 {[%clk 0:00:18]}  Qe4+ {[%clk 0:00:23]} 29. Bf3 {[%clk 0:00:15]}  Qe5 {[%clk 0:00:23]} 30. Rc6 {[%clk 0:00:12]}  a5 {[%clk 0:00:22]} 31. Qc2 {[%clk 0:00:05]}  Qxe3 {[%clk 0:00:19]} 32. Qf5 {[%clk 0:00:05]}  Qd2+ {[%clk 0:00:17]} 33. Kh3 {[%clk 0:00:05]}  Be6 {[%clk 0:00:11]} 34. Rxe6 {[%clk 0:00:05]}  fxe6 {[%clk 0:00:11]} 35. Qxe6+ {[%clk 0:00:06]}  Kh8 {[%clk 0:00:11]} 36. Be4 {[%clk 0:00:05]}  Qd7 {[%clk 0:00:12]} 37. Qxd7 {[%clk 0:00:03]}  Rxd7 {[%clk 0:00:12]} 38. Bc6 {[%clk 0:00:03]}  Rd2 {[%clk 0:00:13]} 39. b4 {[%clk 0:00:03]}  axb4 {[%clk 0:00:12]} 40. axb4 {[%clk 0:00:02]}  Rb2 {[%clk 0:00:12]} 41. Bxb5 {[%clk 0:00:03]}  Rxb4 {[%clk 0:00:13]} 42. Be2 {[%clk 0:00:03]}  g6 {[%clk 0:00:12]} 43. Bd3 {[%clk 0:00:03]}  Kg7 {[%clk 0:00:13]} 44. Kg2 {[%clk 0:00:04]}  Kf6 {[%clk 0:00:14]} 45. h4 {[%clk 0:00:04]}  g5 {[%clk 0:00:12]} 46. hxg5+ {[%clk 0:00:04]}  hxg5 {[%clk 0:00:12]} 47. Kh3 {[%clk 0:00:04]}  Rd4 {[%clk 0:00:11]} 48. Bh7 {[%clk 0:00:03]}  Kg7 {[%clk 0:00:10]} 49. Bb1 {[%clk 0:00:03]}  Kf6 {[%clk 0:00:11]} 50. Bc2 {[%clk 0:00:03]}  Ke5 {[%clk 0:00:09]} 51. Bb1 {[%clk 0:00:03]}  Rd1 {[%clk 0:00:07]} 52. Bg6 {[%clk 0:00:03]}  Rd4 {[%clk 0:00:07]} 53. Bh7 {[%clk 0:00:02]}  Rb4 {[%clk 0:00:07]} 54. Bg6 {[%clk 0:00:02]}  Kf6 {[%clk 0:00:07]} 55. Bh7 {[%clk 0:00:02]}  Kg7 {[%clk 0:00:07]} 56. Bd3 {[%clk 0:00:02]}  Kh6 {[%clk 0:00:08]} 57. Bf5 {[%clk 0:00:02]}  Rd4 {[%clk 0:00:08]} 58. Be6 {[%clk 0:00:03]}  Kh5 {[%clk 0:00:08]} 59. Bf7+ {[%clk 0:00:03]}  Kh6 {[%clk 0:00:08]} 60. Be6 {[%clk 0:00:03]}  Re4 {[%clk 0:00:09]} 61. Bf5 {[%clk 0:00:04]}  Rb4 {[%clk 0:00:08]} 62. Bg4 {[%clk 0:00:04]}  Kg6 {[%clk 0:00:08]} 63. Be6 {[%clk 0:00:04]}  Kf6 {[%clk 0:00:08]} 64. Bd7 {[%clk 0:00:04]}  Ke5 {[%clk 0:00:09]} 65. Be8 {[%clk 0:00:05]}  Rd4 {[%clk 0:00:07]} 66. Bf7 {[%clk 0:00:04]}  Kf5 {[%clk 0:00:06]} 67. Bb3 {[%clk 0:00:04]}  g4+ {[%clk 0:00:07]} 68. Kh4 {[%clk 0:00:04]}  Rd2 {[%clk 0:00:07]} 69. Bd5 {[%clk 0:00:01]}  Rh2# {[%clk 0:00:07]} 0-1


[Site "https://www.chess.com"]

[Event "Titled Tuesday Blitz October 31 Late 2023"]
[White "Harriott, Tyrell"]
[Black "Manukian, Artak"]
[WhiteFideId "2086484"]
[BlackFideId "13301373"]
[WhiteElo "2308"]
[BlackElo "2451"]
[Result "1/2-1/2"]
[Round "5"]
[TimeControl "180+1"]
[Date "2023.10.31"]
[WhiteClock "0:00:08"]
[BlackClock "0:00:14"]
[Board "118"]

1. d4 {[%clk 0:02:56]}  d5 {[%clk 0:02:57]} 2. e3 {[%clk 0:02:57]}  Nf6 {[%clk 0:02:52]} 3. Bd3 {[%clk 0:02:57]}  Bg4 {[%clk 0:02:44]} 4. Ne2 {[%clk 0:02:55]}  e6 {[%clk 0:02:43]} 5. f4 {[%clk 0:02:54]}  c5 {[%clk 0:02:40]} 6. c3 {[%clk 0:02:53]}  Nc6 {[%clk 0:02:40]} 7. Nd2 {[%clk 0:02:51]}  Qb6 {[%clk 0:02:37]} 8. O-O {[%clk 0:02:49]}  Be7 {[%clk 0:02:29]} 9. Nf3 {[%clk 0:02:48]}  O-O {[%clk 0:02:04]} 10. Ne5 {[%clk 0:02:47]}  Bf5 {[%clk 0:02:01]} 11. Ng3 {[%clk 0:02:46]}  Bxd3 {[%clk 0:01:55]} 12. Qxd3 {[%clk 0:02:45]}  g6 {[%clk 0:01:45]} 13. Nh1 {[%clk 0:02:36]}  Nxe5 {[%clk 0:01:36]} 14. fxe5 {[%clk 0:02:35]}  Ne4 {[%clk 0:01:36]} 15. Nf2 {[%clk 0:02:34]}  f5 {[%clk 0:01:30]} 16. b3 {[%clk 0:02:19]}  a5 {[%clk 0:01:15]} 17. Nh3 {[%clk 0:02:05]}  a4 {[%clk 0:01:04]} 18. Rb1 {[%clk 0:01:58]}  axb3 {[%clk 0:00:50]} 19. Rxb3 {[%clk 0:01:56]}  c4 {[%clk 0:00:39]} 20. Rxb6 {[%clk 0:01:53]}  cxd3 {[%clk 0:00:38]} 21. Rxb7 {[%clk 0:01:53]}  Rf7 {[%clk 0:00:29]} 22. a3 {[%clk 0:01:49]}  Nxc3 {[%clk 0:00:25]} 23. Nf4 {[%clk 0:01:43]}  Bg5 {[%clk 0:00:19]} 24. Rxf7 {[%clk 0:01:37]}  Kxf7 {[%clk 0:00:20]} 25. Nxd3 {[%clk 0:01:36]}  Ne2+ {[%clk 0:00:19]} 26. Kf2 {[%clk 0:01:35]}  Nxc1 {[%clk 0:00:20]} 27. Rxc1 {[%clk 0:01:31]}  Rxa3 {[%clk 0:00:21]} 28. Rc7+ {[%clk 0:01:30]}  Kg8 {[%clk 0:00:20]} 29. Nf4 {[%clk 0:01:30]}  Bxf4 {[%clk 0:00:20]} 30. exf4 {[%clk 0:01:29]}  Rd3 {[%clk 0:00:21]} 31. Re7 {[%clk 0:01:22]}  Rxd4 {[%clk 0:00:22]} 32. Ke3 {[%clk 0:01:16]}  Re4+ {[%clk 0:00:20]} 33. Kf3 {[%clk 0:01:16]}  d4 {[%clk 0:00:20]} 34. Rxe6 {[%clk 0:01:16]}  Re3+ {[%clk 0:00:21]} 35. Kf2 {[%clk 0:01:16]}  Re4 {[%clk 0:00:21]} 36. g3 {[%clk 0:01:15]}  Kf7 {[%clk 0:00:20]} 37. Rd6 {[%clk 0:01:14]}  g5 {[%clk 0:00:19]} 38. Kf3 {[%clk 0:01:04]}  g4+ {[%clk 0:00:18]} 39. Kf2 {[%clk 0:01:04]}  h5 {[%clk 0:00:18]} 40. Rf6+ {[%clk 0:01:01]}  Ke7 {[%clk 0:00:18]} 41. Rxf5 {[%clk 0:01:00]}  d3 {[%clk 0:00:18]} 42. Rf6 {[%clk 0:00:53]}  Rd4 {[%clk 0:00:15]} 43. Ke1 {[%clk 0:00:53]}  d2+ {[%clk 0:00:15]} 44. Kd1 {[%clk 0:00:53]}  h4 {[%clk 0:00:15]} 45. Rg6 {[%clk 0:00:51]}  hxg3 {[%clk 0:00:12]} 46. hxg3 {[%clk 0:00:51]}  Rd8 {[%clk 0:00:11]} 47. f5 {[%clk 0:00:44]}  Rd5 {[%clk 0:00:10]} 48. Re6+ {[%clk 0:00:35]}  Kf7 {[%clk 0:00:10]} 49. Rf6+ {[%clk 0:00:32]}  Ke7 {[%clk 0:00:11]} 50. Re6+ {[%clk 0:00:31]}  Kf7 {[%clk 0:00:11]} 51. Rd6 {[%clk 0:00:05]}  Rxe5 {[%clk 0:00:10]} 52. f6 {[%clk 0:00:05]}  Re3 {[%clk 0:00:09]} 53. Kxd2 {[%clk 0:00:05]}  Rxg3 {[%clk 0:00:09]} 54. Ke2 {[%clk 0:00:05]}  Rf3 {[%clk 0:00:10]} 55. Rd4 {[%clk 0:00:05]}  Rxf6 {[%clk 0:00:10]} 56. Rxg4 {[%clk 0:00:05]}  Ke6 {[%clk 0:00:10]} 57. Ke3 {[%clk 0:00:05]}  Kd5 {[%clk 0:00:11]} 58. Kd3 {[%clk 0:00:05]}  Kc6 {[%clk 0:00:11]} 59. Kd4 {[%clk 0:00:06]}  Kd7 {[%clk 0:00:11]} 60. Ke5 {[%clk 0:00:06]}  Re6+ {[%clk 0:00:11]} 61. Kd5 {[%clk 0:00:06]}  Rd6+ {[%clk 0:00:12]} 62. Ke5 {[%clk 0:00:07]}  Rc6 {[%clk 0:00:13]} 63. Kd5 {[%clk 0:00:07]}  Rd6+ {[%clk 0:00:13]} 64. Kc5 {[%clk 0:00:08]}  Re6 {[%clk 0:00:14]} 65. Kd5 {[%clk 0:00:08]}  Rd6+ {[%clk 0:00:14]} 1/2-1/2


[Site "https://www.chess.com"]

[Event "Titled Tuesday Blitz October 31 Late 2023"]
[White "rikchessmx"]
[Black "ATM622"]
[WhiteElo "2296"]
[BlackElo "2446"]
[Result "0-1"]
[Round "5"]
[TimeControl "180+1"]
[Date "2023.10.31"]
[WhiteClock "0:01:46"]
[BlackClock "0:00:24"]
[Board "120"]

1. e4 {[%clk 0:02:58]}  c6 {[%clk 0:03:00]} 2. d4 {[%clk 0:02:51]}  d5 {[%clk 0:02:59]} 3. Nc3 {[%clk 0:02:51]}  dxe4 {[%clk 0:02:58]} 4. Nxe4 {[%clk 0:02:49]}  Bf5 {[%clk 0:02:59]} 5. Ng3 {[%clk 0:02:48]}  Bg6 {[%clk 0:02:59]} 6. Nf3 {[%clk 0:02:49]}  Nd7 {[%clk 0:02:59]} 7. Bd3 {[%clk 0:02:47]}  Bxd3 {[%clk 0:02:59]} 8. Qxd3 {[%clk 0:02:48]}  Ngf6 {[%clk 0:02:59]} 9. Bd2 {[%clk 0:02:47]}  e6 {[%clk 0:03:00]} 10. O-O-O {[%clk 0:02:45]}  Be7 {[%clk 0:03:00]} 11. Kb1 {[%clk 0:02:45]}  a5 {[%clk 0:03:00]} 12. c4 {[%clk 0:02:45]}  O-O {[%clk 0:02:54]} 13. Bc3 {[%clk 0:02:43]}  a4 {[%clk 0:02:43]} 14. a3 {[%clk 0:02:42]}  b5 {[%clk 0:02:38]} 15. c5 {[%clk 0:02:42]}  Nd5 {[%clk 0:02:32]} 16. h4 {[%clk 0:02:39]}  N7f6 {[%clk 0:02:05]} 17. Ng5 {[%clk 0:02:33]}  Nxc3+ {[%clk 0:02:00]} 18. bxc3 {[%clk 0:02:31]}  h6 {[%clk 0:02:00]} 19. Ka2 {[%clk 0:02:24]}  Qd5+ {[%clk 0:01:54]} 20. Kb2 {[%clk 0:02:22]}  Qb3+ {[%clk 0:01:52]} 21. Kc1 {[%clk 0:02:21]}  Qxa3+ {[%clk 0:01:49]} 22. Kd2 {[%clk 0:02:21]}  b4 {[%clk 0:00:42]} 23. Rc1 {[%clk 0:02:15]}  Qb2+ {[%clk 0:00:37]} 24. Rc2 {[%clk 0:02:14]}  bxc3+ {[%clk 0:00:37]} 25. Ke2 {[%clk 0:02:13]}  Qb5 {[%clk 0:00:33]} 26. N5e4 {[%clk 0:02:07]}  Nd5 {[%clk 0:00:29]} 27. Nxc3 {[%clk 0:02:02]}  Nf4+ {[%clk 0:00:26]} 28. Ke1 {[%clk 0:01:48]}  Qxd3 {[%clk 0:00:25]} 29. Rc1 {[%clk 0:01:46]}  Nxg2# {[%clk 0:00:24]} 0-1


[Site "https://www.chess.com"]